bitfinex-derivatives/quotes_SOLF0:USTF0_20260304
["timestamp","ask_amount","ask_price","bid_price","bid_amount"]
[1772599026272,10.594,84.957,84.881,8.8070597]
[1772599028072,4.75981527,84.94,84.881,8.8070597]
[1772599028472,4.75411415,84.95,84.881,8.8070597]
[1772599029971,10.595,84.948,84.881,8.8070597]
[1772599030376,4.75411415,84.93,84.862,8.79937246]
[1772599032874,10.598,84.928,84.862,8.79937246]
[1772599036672,4.75411415,84.91,84.862,8.79937246]
[1772599037771,4.75411415,84.91,84.846,8.77348303]
[1772599038080,4.75411415,84.89,84.846,8.77348303]
[1772599039474,4.75411415,84.9,84.846,8.77348303]
[1772599039972,4.75411415,84.92,84.846,8.77348303]
[1772599040374,15.35211415,84.92,84.848,8.77044519]
[1772599040772,4.75411415,84.92,84.848,8.77044519]
[1772599040977,4.75411415,84.92,84.85,8.80416515]
[1772599041878,4.75411415,84.92,84.852,8.80416515]
[1772599042982,10.6,84.909,84.852,8.80416515]
[1772599043174,4.75411415,84.92,84.852,8.80416515]
[1772599043580,10.6,84.91,84.852,8.80416515]
[1772599044179,4.75411415,84.95,84.8,4.75411415]
[1772599044180,15.35511415,84.9,84.821,8.80657265]
[1772599044778,4.75411415,84.9,84.831,8.80573793]
[1772599046786,15.35511415,84.9,84.831,8.80573793]
[1772599047880,4.75411415,84.9,84.833,8.82293966]
[1772599048380,4.75411415,84.9,84.841,10.608]
[1772599048580,290.81605853,84.938,84.833,8.82293966]
[1772599048581,4.75411415,84.88,84.833,8.82293966]
[1772599048981,4.75411415,84.88,84.836,8.84717434]
[1772599049985,4.75411415,84.9,84.847,8.84717434]
[1772599050377,4.75411415,84.9,84.85,8.84717434]
[1772599051386,10.601,84.899,84.83,8.86438018]
[1772599051880,4.75411415,84.9,84.843,8.86438018]
[1772599053384,15.35511415,84.9,84.843,8.86438018]
[1772599053890,15.35511415,84.9,84.81,4.75411415]
[1772599053891,4.75411415,84.88,84.814,10.612]
[1772599054190,4.75411415,84.86,84.81,8.86768672]
[1772599057191,4.75411415,84.88,84.812,8.84099548]
[1772599057694,4.75411415,84.88,84.79,4.75411415]
[1772599057695,10.602,84.891,84.816,8.84099548]
[1772599058692,4.75411415,84.89,84.82,8.84099548]
[1772599059293,4.75411415,84.89,84.824,8.7836315]
[1772599060691,4.75411415,84.89,84.826,8.7836315]
[1772599062193,4.75411415,84.89,84.81,4.75411415]
[1772599062194,4.75411415,84.89,84.828,8.79253769]
[1772599063397,4.75411415,84.89,84.83,8.79041954]
[1772599063996,4.75411415,84.89,84.845,8.79041954]
[1772599065187,4.75411415,84.89,84.849,8.78530039]
[1772599066289,4.75411415,84.89,84.81,4.75411415]
[1772599066290,4.75411415,84.89,84.835,8.78530039]
[1772599067396,4.75411415,84.89,84.836,8.78460771]
[1772599067791,4.75411415,84.91,84.836,8.78460771]
[1772599068098,10.6,84.909,84.85,8.78460771]
[1772599068300,9.25972016,84.909,84.85,8.78460771]
[1772599068498,4.75411415,84.91,84.85,8.78460771]
[1772599068499,10.6,84.906,84.85,8.78460771]
[1772599069098,19.85972016,84.906,84.85,8.78460771]
[1772599069295,10.6,84.904,84.85,8.78460771]
[1772599069490,19.85972016,84.904,84.85,8.78460771]
[1772599069691,9.25972016,84.903,84.85,8.78460771]
[1772599069896,10.6,84.904,84.852,8.72177612]
[1772599070599,9.25972016,84.908,84.854,19.32877612]
[1772599070898,4.75411415,84.91,84.854,19.32877612]
[1772599071101,4.75411415,84.91,84.855,8.71779815]
[1772599071893,10.6,84.909,84.855,8.71779815]
[1772599072803,29.79977514,84.909,84.855,8.71779815]
[1772599073096,9.25972016,84.908,84.855,8.71779815]
[1772599073299,10.6,84.907,84.855,8.71779815]
[1772599074202,10.6,84.904,84.855,8.71779815]
[1772599074403,9.25972016,84.905,84.857,8.71442684]
[1772599074603,9.25972016,84.908,84.857,8.71442684]
[1772599074801,4.75411415,84.91,84.857,8.71442684]
[1772599075203,9.25972016,84.909,84.857,8.71442684]
[1772599075403,4.75411415,84.91,84.857,8.71442684]
[1772599075604,10.599,84.914,84.857,8.71442684]
[1772599075605,9.25972016,84.912,84.857,8.71442684]
[1772599075804,4.75411415,84.92,84.857,8.71442684]
[1772599077308,10.597,84.933,84.859,8.629121]
[1772599077702,19.85779074,84.933,84.859,8.629121]
[1772599077908,10.597,84.93,84.863,8.629121]
[1772599078501,9.26079074,84.935,84.871,8.629121]
[1772599078808,290.81605853,84.938,84.871,8.629121]
[1772599080212,10.596,84.937,84.874,8.60581989]
[1772599080413,290.81605853,84.938,84.874,8.60581989]
[1772599081310,4.75411415,84.97,84.891,8.55802944]
[1772599081504,19.18432393,84.984,84.891,8.55802944]
[1772599081702,9.2464444,84.983,84.891,8.55802944]
[1772599081902,10.591,84.978,84.91,4.75411415]
[1772599082107,10.591,84.978,84.911,8.55802944]
[1772599082308,4.75411415,84.99,84.914,8.55802944]
[1772599083216,4.75411415,84.99,84.916,8.57202331]
[1772599083609,4.75411415,85.01,84.931,8.57202331]
[1772599084611,1.59503081,85.0,84.951,8.57202331]
[1772599085318,1.59503081,84.97,84.921,8.58064984]
[1772599088210,1.59503081,84.97,84.924,8.53439539]
[1772599088615,1.59595137,84.97,84.924,8.53439539]
[1772599089016,1.59595137,84.97,84.923,10.598]
[1772599089017,1.59595137,84.97,84.931,8.53540327]
[1772599090618,1.59595137,84.98,84.931,8.53540327]
[1772599090924,14.37661035,85.049,84.872,11.96644635]
[1772599090925,1.59595137,84.99,84.941,8.53546459]
[1772599091222,164.601,85.061,84.941,8.53546459]
[1772599091223,1.59595137,84.98,84.941,8.53546459]
[1772599092222,1.59595137,84.99,84.941,8.53546459]
[1772599092420,4.74865362,85.0,84.941,8.53546459]
[1772599092819,10.589,84.997,84.941,8.53546459]
[1772599095421,10.59,84.986,84.941,8.53546459]
[1772599095627,4.74865362,84.98,84.909,8.6403142]
[1772599096830,4.74865362,84.98,84.924,8.64891375]
[1772599098326,4.74865362,84.98,84.871,164.965]
[1772599098327,4.74865362,84.98,84.927,8.64891375]
[1772599098526,10.59,84.989,84.927,8.64891375]
[1772599098727,4.74865362,85.0,84.927,8.64891375]
[1772599099328,4.74865362,85.0,84.931,8.64722377]
[1772599100330,4.74865362,85.0,84.939,8.6472601]
[1772599102134,10.589,84.999,84.939,8.6472601]
[1772599102527,4.74865362,85.01,84.939,8.6472601]
[1772599104134,10.588,85.001,84.939,8.6472601]
[1772599104530,4.74865362,85.01,84.939,8.6472601]
[1772599104828,15.33565362,85.01,84.941,8.64841345]
[1772599105027,4.74865362,85.01,84.941,8.64841345]
[1772599105424,4.74865362,85.01,84.944,8.64841345]
[1772599106229,10.589,84.999,84.944,8.64841345]
[1772599107033,4.74865362,85.01,84.946,8.64614529]
[1772599107034,10.587,85.008,84.946,8.64614529]
[1772599107635,10.587,85.008,84.949,8.64614529]
[1772599108036,10.589,85.0,84.949,8.64614529]
[1772599110137,10.587,85.009,84.95,8.71926591]
[1772599110337,4.74865362,85.03,84.95,8.71926591]
[1772599111337,10.586,85.019,84.963,8.7188736]
[1772599112243,10.587,85.009,84.941,8.7188736]
[1772599112444,1.59525476,84.99,84.941,8.7188736]
[1772599112838,1.59525476,85.0,84.953,8.71204289]
[1772599113043,1.59525476,85.01,84.953,8.71204289]
[1772599113440,1.59525476,85.0,84.955,8.71204289]
[1772599114346,1.59525476,84.99,84.955,8.71204289]
[1772599116042,1.59525476,85.0,84.955,8.71204289]
[1772599116645,10.589,84.999,84.955,8.71204289]
[1772599116843,1.59525476,84.99,84.955,8.71204289]
[1772599120050,1.59525476,85.0,84.955,8.71204289]
[1772599120250,1.59525476,84.99,84.955,8.71204289]
[1772599121950,1.59525476,84.99,84.943,8.71004521]
[1772599123553,9.15416824,84.999,84.951,8.77854705]
[1772599123754,9.15416824,85.007,84.951,8.77854705]
[1772599123953,9.15416824,85.006,84.951,8.77854705]
[1772599124150,9.15416824,85.005,84.951,8.77854705]
[1772599124346,1.59525476,85.0,84.951,8.77854705]
[1772599125249,1.59525476,85.0,84.956,8.78359165]
[1772599125751,1.59525476,85.01,84.956,8.78359165]
[1772599125952,9.25589401,85.009,84.97,1.59525476]
[1772599126152,9.89002307,85.019,84.971,8.78359165]
[1772599126350,19.15234249,85.018,84.971,8.78359165]
[1772599126555,9.26231942,85.017,84.981,8.78359165]
[1772599126745,19.15234249,85.029,84.981,8.78359165]
[1772599126950,9.26231942,85.028,84.981,8.78359165]
[1772599127152,9.25877821,85.029,84.981,8.78359165]
[1772599127447,1.59525476,85.03,84.981,8.78359165]
[1772599127648,9.25896826,85.029,84.981,8.78359165]
[1772599127949,19.14901224,85.037,84.991,8.78257727]
[1772599128156,9.25898917,85.036,84.991,8.78257727]
[1772599128455,9.25898917,85.039,84.991,8.78257727]
[1772599128754,9.25898917,85.038,84.991,8.78257727]
[1772599128954,9.25898917,85.037,84.991,8.78257727]
[1772599129151,1.59525476,85.04,84.991,8.78257727]
[1772599129958,1.59525476,85.02,84.974,8.67705395]
[1772599131350,1.59525476,85.01,84.974,8.67705395]
[1772599131855,1.59525476,85.02,84.974,8.67705395]
[1772599133661,1.59525476,85.01,84.974,8.67705395]
[1772599133858,1.59525476,85.0,84.974,8.67705395]
[1772599134154,1.59525476,84.99,84.956,8.65892107]
[1772599136959,1.59525476,85.0,84.956,8.65892107]
[1772599138863,1.59525476,85.01,84.959,8.64744045]
[1772599139359,1.59525476,85.0,84.959,8.64744045]
[1772599140356,1.59525476,85.0,84.961,8.64744045]
[1772599140560,1.59525476,85.01,84.961,8.64744045]
[1772599140761,1.59525476,85.0,84.961,8.64744045]
[1772599142162,1.59525476,84.99,84.961,8.64744045]
[1772599142762,1.59525476,85.0,84.961,8.64744045]
[1772599143463,1.59525476,85.0,84.962,8.63953323]
[1772599143665,1.59525476,85.01,84.962,8.63953323]
[1772599143965,1.59525476,85.02,84.971,8.63953323]
[1772599144158,1.59525476,85.0,84.971,8.63953323]
[1772599145467,1.59525476,84.99,84.958,8.64174714]
[1772599146062,1.59525476,85.0,84.958,8.64174714]
[1772599147465,1.59525476,85.0,84.962,8.65508826]
[1772599148468,1.59472136,85.0,84.962,8.65508826]
[1772599150466,9.25036728,85.017,84.95,1.59472136]
[1772599150467,1.59472136,84.99,84.95,10.595]
[1772599150669,1.59472136,84.99,84.951,8.65901939]
[1772599155270,9.25036728,85.01,84.905,21.201]
[1772599155271,10.84508864,85.01,84.953,8.65864393]
[1772599155468,1.59472136,84.99,84.953,8.65864393]
[1772599157070,1.59472136,84.98,84.953,8.65864393]
[1772599159576,1.59472136,84.99,84.953,8.65864393]
[1772599161977,1.59472136,84.98,84.953,8.65864393]
[1772599166387,1.59472136,84.99,84.953,8.65864393]
[1772599167086,1.59472136,84.99,84.955,8.72473828]
[1772599167385,1.59472136,85.0,84.955,8.72473828]
[1772599167686,19.23423998,85.008,84.955,8.72473828]
[1772599167687,1.59472136,84.99,84.955,8.72473828]
[1772599171186,1.59472136,84.98,84.955,8.72473828]
[1772599171687,1.59472136,84.99,84.955,8.72473828]
[1772599175886,9.25184307,84.998,84.955,8.72473828]
[1772599176081,9.25184307,84.999,84.955,8.72473828]
[1772599176286,9.25184307,84.998,84.955,8.72473828]
[1772599176489,9.25184307,84.997,84.955,8.72473828]
[1772599176785,9.25184307,84.999,84.955,8.72473828]
[1772599176985,1.59472136,85.0,84.955,8.72473828]
[1772599177486,1.59472136,85.0,84.958,8.75164022]
[1772599177692,10.00156965,85.015,84.971,4.12571868]
[1772599177887,1.59472136,85.02,84.971,4.12571868]
[1772599178689,1.59472136,85.03,84.972,4.12571868]
[1772599179493,1.59472136,85.03,84.981,4.13939121]
[1772599180491,1.59472136,85.02,84.981,4.13939121]
[1772599180793,1.59472136,85.01,84.981,4.13939121]
[1772599185195,1.59472136,85.01,84.969,4.15464231]
[1772599185596,1.59472136,85.01,84.971,4.15464231]
[1772599186397,1.59472136,85.02,84.971,4.15464231]
[1772599186999,1.59472136,85.02,84.974,4.14237053]
[1772599188293,1.59472136,85.02,84.979,4.14237053]
[1772599188896,9.94673123,85.039,84.979,4.14237053]
[1772599188897,1.59472136,85.01,84.979,4.14237053]
[1772599190501,1.59472136,85.0,84.961,4.13482024]
[1772599190895,1.59472136,85.0,84.958,10.594]
[1772599190896,1.59472136,85.02,84.978,4.13363195]
[1772599191098,1.59472136,85.01,84.978,4.13363195]
[1772599191395,1.59472136,85.02,84.981,4.13363195]
[1772599191797,9.2279461,85.045,85.001,4.13363195]
[1772599192002,1.59472136,85.05,85.001,4.13363195]
[1772599192197,9.23020078,85.076,85.021,4.13363195]
[1772599192403,1.59472136,85.07,85.021,4.13363195]
[1772599192596,1.59472136,85.05,85.008,4.13363195]
[1772599193099,1.59472136,85.06,85.015,4.31454917]
[1772599193295,9.23020078,85.089,85.031,4.31454917]
[1772599193499,1.59472136,85.08,85.031,4.31454917]
[1772599193694,1.59472136,85.1,85.056,4.31454917]
[1772599193894,1.59472136,85.11,85.061,4.31454917]
[1772599194294,1.59472136,85.1,85.061,4.31454917]
[1772599194695,1.59472136,85.09,85.041,4.31454917]
[1772599194900,1.59472136,85.08,85.041,4.31454917]
[1772599195101,1.59472136,85.07,85.041,4.31454917]
[1772599195697,1.59472136,85.08,85.041,4.31454917]
[1772599198503,1.59472136,85.07,85.024,4.45870584]
[1772599198701,1.59472136,85.06,85.024,4.45870584]
[1772599198902,1.59472136,85.07,85.024,4.45870584]
[1772599199304,1.59472136,85.06,85.024,4.45870584]
[1772599200403,1.59472136,85.07,85.024,4.45870584]
[1772599200605,1.59472136,85.07,84.961,188.18]
[1772599200606,1.59472136,85.06,85.01,6.04141034]
[1772599200802,1.59472136,85.05,85.01,4.44668898]
[1772599201003,1.59472136,85.06,85.011,4.43496379]
[1772599201203,1.59472136,85.06,84.961,188.18]
[1772599201204,1.59472136,85.05,84.992,4.43496379]
[1772599201404,1.59472136,85.03,84.992,4.43496379]
[1772599201600,29.86666258,85.097,84.992,4.43496379]
[1772599201805,1.59472136,85.04,84.992,4.43496379]
[1772599202104,1.59472136,85.09,85.031,3.63760311]
[1772599202300,0.66905562,85.079,85.026,3.63760311]
[1772599202604,1.59472136,85.06,85.026,3.63760311]
[1772599204506,1.59472136,85.07,85.026,3.63760311]
[1772599205505,1.59472136,85.08,85.031,3.59811344]
[1772599206402,1.59472136,85.07,85.031,3.59811344]
[1772599207107,1.59472136,85.06,85.031,3.59811344]
[1772599208510,1.59273632,85.05,85.011,3.59811344]
[1772599210201,1.59273632,85.04,84.991,3.59811344]
[1772599210702,1.59273632,85.05,85.001,3.59811344]
[1772599210902,1.59273632,85.04,85.001,3.59811344]
[1772599214506,1.59273632,85.05,85.004,3.62984862]
[1772599215604,1.59273632,85.06,85.01,1.59273632]
[1772599215805,1.59273632,85.05,85.011,3.63133009]
[1772599216003,1.59273632,85.04,84.998,3.63133009]
[1772599218510,1.59273632,85.04,85.001,3.66838901]
[1772599219108,0.68296394,85.039,84.99,1.59273632]
[1772599219411,0.68296394,85.029,84.985,3.66838901]
[1772599219809,1.59273632,85.04,84.991,3.68556933]
[1772599220513,0.68529173,85.049,85.001,3.68556933]
[1772599221114,1.59273632,85.04,85.001,3.68556933]
[1772599222219,0.68529173,85.049,85.001,3.68556933]
[1772599222220,1.59273632,85.03,85.001,3.68556933]
[1772599225316,2.62783256,85.05,85.001,3.68556933]
[1772599225517,1.59273632,85.04,85.001,3.68556933]
[1772599228916,1.59273632,85.06,85.011,3.68556933]
[1772599229516,1.59273632,85.05,85.011,3.68556933]
[1772599230019,1.59273632,85.04,84.998,3.68556933]
[1772599230519,1.59273632,85.03,84.998,3.68556933]
[1772599232121,1.59273632,85.02,84.986,3.68556933]
[1772599232522,1.59273632,85.03,84.986,3.68556933]
[1772599233322,1.03305836,85.019,84.971,3.68556933]
[1772599234222,1.03305836,85.019,84.973,10.592]
[1772599234416,1.59273632,85.03,84.981,3.68556933]
[1772599234616,1.03305836,85.035,84.991,3.68556933]
[1772599235022,1.59273632,85.05,85.001,3.68556933]
[1772599235817,1.59273632,85.04,85.001,3.68556933]
[1772599236524,1.59273632,85.05,85.001,3.68556933]
[1772599239417,1.05577146,85.051,85.001,3.68556933]
[1772599239615,1.59273632,85.05,85.001,3.68556933]
[1772599240521,2.62249204,85.05,85.001,3.68556933]
[1772599242326,2.62249204,85.05,85.004,3.68556933]
[1772599243527,1.59273632,85.04,85.004,3.68556933]
[1772599244323,2.62249204,85.05,85.004,3.68556933]
[1772599246130,1.59273632,85.03,84.99,3.68556933]
[1772599246434,1.59273632,85.01,84.971,3.68556933]
[1772599247525,1.59273632,84.99,84.959,3.68556933]
[1772599247927,21.46371255,85.052,84.959,3.68556933]
[1772599247928,1.59273632,85.0,84.959,3.68556933]
[1772599248125,1.59273632,85.02,84.971,3.90144382]
[1772599248428,1.11571129,85.039,84.981,3.90144382]
[1772599248429,1.59273632,85.03,84.981,3.90144382]
[1772599248931,10.82923949,85.052,85.001,3.90144382]
[1772599248932,20.67804106,85.05,85.001,3.90144382]
[1772599249231,1.59273632,85.05,85.001,3.90144382]
[1772599250332,1.59273632,85.04,85.001,3.90144382]
[1772599251027,1.59273632,85.02,84.981,3.90144382]
[1772599252533,1.59273632,85.03,84.981,3.90144382]
[1772599252936,9.18122147,85.039,84.991,3.90144382]
[1772599253128,1.59273632,85.04,84.991,3.90144382]
[1772599255738,9.31540918,85.039,84.991,3.90144382]
[1772599256038,1.59273632,85.04,84.991,3.90144382]
[1772599256233,9.31597942,85.039,84.991,3.90144382]
[1772599256537,1.59273632,85.04,84.991,3.90144382]
[1772599257140,1.59273632,85.05,85.001,3.90144382]
[1772599257344,9.31802222,85.049,85.001,3.90144382]
[1772599257642,1.59273632,85.05,85.001,3.90144382]
[1772599257834,9.31779389,85.049,85.001,3.90144382]
[1772599258032,9.3177033,85.048,85.001,3.90144382]
[1772599258235,9.31752092,85.047,85.001,3.90144382]
[1772599258436,9.31752092,85.046,85.001,3.90144382]
[1772599258730,2.8420208,85.05,85.001,3.90144382]
[1772599258934,9.31758058,85.049,85.001,3.90144382]
[1772599259140,9.31758058,85.048,85.001,3.90144382]
[1772599259440,9.31758058,85.047,85.001,3.90144382]
[1772599259641,9.31758058,85.046,85.001,3.90144382]
[1772599259845,9.31750963,85.049,85.001,3.90144382]
[1772599260039,2.8420208,85.05,85.001,3.90144382]
[1772599260235,9.31750963,85.049,85.001,3.90144382]
[1772599260436,9.31750963,85.048,85.001,3.90144382]
[1772599260636,9.31750963,85.047,85.001,3.90144382]
[1772599260838,1.59273632,85.04,85.001,3.90144382]
[1772599261035,9.31750963,85.039,85.001,3.90144382]
[1772599261236,1.59273632,85.04,85.001,3.90144382]
[1772599261540,9.31688692,85.039,85.001,3.90144382]
[1772599261738,1.59273632,85.04,85.001,3.90144382]
[1772599261942,9.31566031,85.039,85.001,3.90144382]
[1772599262140,1.59273632,85.04,85.001,3.90144382]
[1772599262439,1.59273632,85.04,84.93,164.852]
[1772599262440,1.25322731,85.038,84.988,3.90144382]
[1772599262744,1.59273632,85.02,84.971,3.90144382]
[1772599263438,1.59273632,85.02,84.972,10.592]
[1772599263642,1.59273632,85.02,84.973,3.90144382]
[1772599264045,1.59273632,85.01,84.973,3.90144382]
[1772599265639,1.59273632,85.01,84.906,21.201]
[1772599265640,1.59273632,84.99,84.946,3.90144382]
[1772599266344,1.25624121,84.999,84.946,3.90144382]
[1772599266545,1.25624121,84.999,84.951,3.90144382]
[1772599268143,1.59273632,84.99,84.951,3.90144382]
[1772599268349,1.25624121,84.999,84.951,3.90144382]
[1772599268549,1.59273632,84.99,84.951,3.90144382]
[1772599270150,1.59273632,85.0,84.951,3.90144382]
[1772599270354,1.59273632,85.0,84.961,3.90144382]
[1772599270555,1.59482665,84.99,84.941,3.90144382]
[1772599272156,1.59482665,84.98,84.941,3.90144382]
[1772599272554,2.91085477,84.989,84.941,3.90144382]
[1772599274652,10.82923949,85.024,84.95,1.59482665]
[1772599274855,1.59482665,85.03,84.98,3.74799286]
[1772599275356,5.35872451,85.03,84.98,3.74799286]
[1772599276457,3.76389786,85.069,85.021,3.74799286]
[1772599276855,1.59482665,85.06,85.021,3.74799286]
[1772599277359,3.76389786,85.069,85.021,3.74799286]
[1772599277862,1.59482665,85.08,85.03,1.59482665]
[1772599278156,1.59482665,85.08,85.031,3.8249113]
[1772599278563,8.43289479,85.1,85.032,3.64630479]
[1772599278760,3.69547676,85.099,85.032,3.64630479]
[1772599280264,3.69547676,85.099,85.02,4.73741803]
[1772599280265,3.69547676,85.099,85.04,3.57329665]
[1772599281264,3.57853531,85.105,85.042,3.57329665]
[1772599281563,3.57853531,85.105,85.021,3.57329665]
[1772599281766,3.57853531,85.103,85.033,3.57329665]
[1772599282566,3.57853531,85.099,85.033,3.57329665]
[1772599282865,3.57853531,85.089,85.033,3.57329665]
[1772599283167,3.57853531,85.089,85.037,3.57329665]
[1772599283464,3.57853531,85.089,85.0,4.73741803]
[1772599283465,3.57853531,85.089,85.023,3.57329665]
[1772599286759,3.57853531,85.088,85.023,3.57329665]
[1772599288169,3.57853531,85.088,85.025,3.57329665]
[1772599288771,3.57853531,85.088,85.027,3.57329665]
[1772599291169,4.73741803,85.09,85.031,3.57329665]
[1772599291370,3.57853531,85.116,85.041,3.57329665]
[1772599291670,3.57853531,85.116,85.063,14.15429665]
[1772599292464,3.57853531,85.116,85.063,3.57329665]
[1772599295177,3.57853531,85.112,85.045,3.57329665]
[1772599296876,3.57853531,85.112,85.062,3.57329665]
[1772599298366,3.57853531,85.112,85.065,3.57329665]
[1772599298679,1.59078318,85.11,85.065,3.57329665]
[1772599299574,1.59078318,85.12,85.071,3.57329665]
[1772599300777,3.57853531,85.132,85.081,3.57329665]
[1772599300778,1.59078318,85.13,85.081,3.57329665]
[1772599302377,1.59078318,85.13,85.083,3.57329665]
[1772599303273,1.59078318,85.13,85.086,3.57329665]
[1772599305376,1.59078318,85.13,85.089,3.57329665]
[1772599307779,5.16931849,85.12,85.075,3.57329665]
[1772599307979,1.59078318,85.11,85.075,3.57329665]
[1772599308584,3.57853531,85.119,85.076,10.579]
[1772599308781,1.59078318,85.1,85.051,3.74889853]
[1772599308979,3.90866159,85.109,85.061,3.74889853]
[1772599309679,3.90866159,85.109,85.063,10.581]
[1772599309886,3.90866159,85.109,85.063,14.32989853]
[1772599310087,3.90866159,85.109,85.064,3.74889853]
[1772599311379,3.90866159,85.109,85.066,3.64318992]
[1772599316486,1.59078318,85.1,85.066,3.64318992]
[1772599317591,3.90866159,85.109,85.066,3.64318992]
[1772599318878,3.90866159,85.109,85.068,10.58]
[1772599319078,3.90866159,85.109,85.068,3.63909296]
[1772599319593,1.59078318,85.09,85.043,3.63909296]
[1772599319791,1.59078318,85.08,85.043,3.63909296]
[1772599320193,3.90866159,85.089,85.043,3.63909296]
[1772599320692,3.90866159,85.109,85.061,3.63909296]
[1772599320891,3.90866159,85.109,85.06,1.59078318]
[1772599320892,3.90866159,85.109,85.064,3.61748058]
[1772599321392,3.90866159,85.109,85.066,3.61748058]
[1772599323687,1.59078318,85.12,85.071,3.73450276]
[1772599324392,1.59078318,85.13,85.081,3.73450276]
[1772599324591,9.11776454,85.129,85.091,3.73450276]
[1772599324888,9.11776454,85.134,85.091,3.73450276]
[1772599325093,3.90866159,85.134,85.091,3.73450276]
[1772599325295,3.90866159,85.119,85.081,3.75011981]
[1772599327592,3.90866159,85.119,85.083,3.74782807]
[1772599327788,1.59078318,85.13,85.083,3.74782807]
[1772599327995,5.49944477,85.13,85.083,3.74782807]
[1772599328195,3.90866159,85.129,85.083,3.74782807]
[1772599329289,3.90866159,85.129,85.084,10.578]
[1772599329693,3.90866159,85.129,85.07,1.59078318]
[1772599329995,3.90866159,85.119,85.071,3.68405841]
[1772599330196,3.90866159,85.119,85.072,10.579]
[1772599330397,3.90866159,85.119,85.073,3.68405841]
[1772599332197,3.90866159,85.119,85.08,1.59023375]
[1772599332397,1.59023375,85.13,85.081,3.68813698]
[1772599332798,10.80648067,85.14,85.091,3.66260747]
[1772599332993,3.90866159,85.144,85.091,3.66260747]
[1772599333495,3.90866159,85.144,85.11,1.59023375]
[1772599333691,3.90866159,85.144,85.101,3.66260747]
[1772599335088,10.81899936,85.178,85.101,3.66260747]
[1772599335089,5.49889534,85.14,85.101,3.66260747]
[1772599335297,3.90866159,85.139,85.091,3.68433489]
[1772599335497,1.59023375,85.13,85.091,3.68433489]
[1772599336302,3.90866159,85.139,85.091,3.68433489]
[1772599337202,3.90866159,85.139,85.092,10.577]
[1772599337604,3.90866159,85.139,85.093,3.96150046]
[1772599338205,3.90866159,85.139,85.096,3.92022249]
[1772599339004,1.59023375,85.12,85.081,3.92022249]
[1772599339202,3.78471473,85.119,85.07,1.59023375]
[1772599340304,1.59023375,85.11,85.064,3.92022249]
[1772599340504,3.78471473,85.119,85.07,5.28133164]
[1772599340808,3.78471473,85.119,85.071,3.69109789]
[1772599341702,1.59023375,85.13,85.081,3.69109789]
[1772599341906,3.75920524,85.129,85.081,3.69109789]
[1772599342505,1.59023375,85.12,85.081,3.69109789]
[1772599342902,5.34943899,85.12,85.081,3.69109789]
[1772599343907,3.75920524,85.119,85.081,3.69109789]
[1772599345204,3.75920524,85.129,85.083,3.69109789]
[1772599345402,1.59023375,85.12,85.083,3.69109789]
[1772599345807,3.75920524,85.119,85.073,10.579]
[1772599346814,3.75920524,85.119,85.07,3.69109789]
[1772599347016,3.75920524,85.119,85.07,5.28133164]
[1772599348818,3.75920524,85.119,85.071,3.69109789]
[1772599351620,3.75920524,85.119,85.072,3.69109789]
[1772599352710,3.75920524,85.119,85.081,3.69109789]
[1772599353015,1.59023375,85.13,85.081,3.69109789]
[1772599354215,5.34943899,85.13,85.082,10.578]
[1772599354515,3.75920524,85.129,85.083,3.69109789]
[1772599355124,3.75920524,85.129,85.086,3.69109789]
[1772599355417,11.77,85.221,85.032,199.28236268]
[1772599355418,1.59023375,85.14,85.09,1.59023375]
[1772599355622,3.75920524,85.142,85.101,3.69109789]
[1772599355920,1.59023375,85.15,85.102,3.69109789]
[1772599356322,5.34943899,85.15,85.102,3.69109789]
[1772599357425,3.75920524,85.149,85.104,3.69109789]
[1772599358323,3.75920524,85.149,85.1,1.59023375]
[1772599359617,3.75920524,85.149,85.1,5.28133164]
[1772599360626,3.75920524,85.149,85.101,3.69109789]
[1772599362123,3.75920524,85.139,85.094,3.69109789]
[1772599363028,1.59023375,85.15,85.101,3.69109789]
[1772599363430,5.34943899,85.15,85.101,3.69109789]
[1772599363630,3.75920524,85.149,85.101,3.69109789]
[1772599364031,10.84499755,85.177,85.101,3.69109789]
[1772599364227,10.84499755,85.177,85.047,29.19562565]
[1772599364228,11.21979987,85.194,85.153,10.569]
[1772599364424,12.81003362,85.21,85.16,1.59023375]
[1772599364826,11.21979987,85.21,85.17,1.59023375]
[1772599365128,11.21979987,85.21,85.18,1.59023375]
[1772599365431,1.59023375,85.23,85.18,1.59023375]
[1772599365432,11.23277523,85.229,85.18,1.59023375]
[1772599365933,11.23277523,85.209,85.16,1.59023375]
[1772599366928,11.16085165,85.189,85.14,1.59023375]
[1772599367630,11.16085165,85.179,85.13,1.59023375]
[1772599368532,11.16085165,85.179,85.131,10.572]
[1772599368831,11.16085165,85.179,85.065,21.161]
[1772599368832,1.59023375,85.19,85.14,1.59023375]
[1772599369131,12.7922444,85.19,85.14,1.59023375]
[1772599369530,11.20201065,85.19,85.15,1.59023375]
[1772599369834,11.20201065,85.19,85.142,10.571]
[1772599369835,12.7922444,85.19,85.142,10.571]
[1772599371923,11.20201065,85.19,85.152,10.57]